bitfinex-derivatives/quotes_ETHF0:USTF0_20240922
["timestamp","ask_amount","ask_price","bid_price","bid_amount"]
[1727043086111,6.1978,2530.2,2529.3,3.2078]
[1727043086316,3.2078,2530.2,2529.8,0.39522]
[1727043086510,3.2078,2530.2,2529.2,2.01928826]
[1727043086511,3.60296,2530.2,2529.6,0.39524]
[1727043086814,3.60296,2530.2,2529.8,0.39522]
[1727043086815,3.2078,2530.2,2529.8,0.39522]
[1727043087410,3.2078,2530.2,2529.7,0.39523]
[1727043087611,3.2078,2530.2,2529.6,0.39524]
[1727043087810,3.2078,2530.2,2529.3,0.98826]
[1727043088016,5.3976,2530.6,2530.3,0.39513]
[1727043088213,3.2078,2530.6,2529.8,12.09578826]
[1727043088416,3.2078,2531.1,2530.3,0.39514]
[1727043088611,3.2078,2530.8,2530.1,0.39516]
[1727043089514,3.2078,2530.5,2530.0,1.42617826]
[1727043089712,3.2078,2530.5,2530.0,0.39519]
[1727043090214,3.2078,2530.5,2530.1,0.39517]
[1727043090516,3.2078,2530.7,2530.1,0.39517]
[1727043091110,3.2078,2530.7,2530.0,0.39518]
[1727043091312,3.60288,2530.7,2529.9,5.81568826]
[1727043091519,3.2078,2530.4,2529.9,1.1817]
[1727043091720,3.60289,2530.7,2530.0,0.39519]
[1727043092025,3.2078,2530.7,2530.0,0.39519]
[1727043092217,4.1197,2531.2,2529.8,9.0025]
[1727043092218,3.2078,2530.4,2529.8,9.0025]
[1727043092421,3.2078,2530.4,2530.0,0.39518]
[1727043092725,3.2078,2530.4,2529.9,0.3952]
[1727043094220,3.2078,2530.4,2529.8,7.857]
[1727043094426,3.2078,2530.1,2529.3,3.2078]
[1727043094725,3.2078,2529.7,2529.3,3.6031]
[1727043094922,3.2078,2529.7,2529.2,0.39531]
[1727043095121,3.2078,2529.7,2529.1,1.0806]
[1727043095320,3.2078,2529.7,2529.4,0.39528]
[1727043095519,3.2078,2530.0,2529.4,3.2078]
[1727043095731,3.2078,2530.0,2529.7,0.39524]
[1727043095926,3.2078,2530.0,2529.6,0.39525]
[1727043096128,3.2078,2530.0,2529.7,0.39524]
[1727043097423,3.9528,2529.9,2529.5,0.39526]
[1727043097631,0.39522,2529.8,2529.1,1.03098826]
[1727043097821,3.2078,2529.3,2528.5,1.42640826]
[1727043098143,3.2078,2529.3,2528.4,0.40927443]
[1727043098144,3.2078,2529.0,2528.4,0.40927443]
[1727043098428,2.99,2528.8,2528.4,0.40927443]
[1727043098639,4.2628,2528.9,2528.4,0.80471443]
[1727043099225,4.2628,2528.9,2528.5,0.39543]
[1727043099429,3.9544,2528.8,2528.5,0.39543]
[1727043099634,3.2078,2528.9,2528.4,0.40927443]
[1727043099824,4.3238,2529.2,2528.4,0.40927443]
[1727043100026,3.2078,2528.9,2528.4,0.40927443]
[1727043100228,3.2078,2528.9,2528.4,0.80471443]
[1727043100536,3.2078,2528.9,2528.5,0.39542]
[1727043100739,3.2078,2528.9,2528.4,0.80471443]
[1727043100936,3.60317,2528.9,2528.4,0.40927443]
[1727043101235,3.60323,2528.6,2528.4,0.40927443]
[1727043101426,3.60323,2528.6,2527.5,0.14574569]
[1727043101427,0.39549,2528.2,2527.4,1.1792]
[1727043101624,3.2078,2527.9,2527.0,4.19696]
[1727043101826,3.2078,2527.9,2527.5,0.39557]
[1727043102024,3.2078,2527.9,2527.8,0.39554]
[1727043102327,7.1638,2527.9,2527.8,0.39554]
[1727043102529,7.1638,2527.9,2527.3,3.2078]
[1727043102530,3.2078,2528.3,2527.9,0.39552]
[1727043103238,3.2078,2528.3,2527.5,3.2078]
[1727043103433,1.1136,2528.9,2527.8,3.2078]
[1727043103434,4.3214,2528.9,2527.8,3.2078]
[1727043103737,3.2078,2528.6,2527.9,0.39551]
[1727043103943,3.2078,2528.6,2527.8,3.2078]
[1727043103944,4.3214,2528.9,2527.8,4.19664]
[1727043104123,4.3214,2528.9,2528.1,3.2078]
[1727043104124,3.2078,2528.9,2528.1,3.2078]
[1727043104327,3.2078,2528.9,2528.0,6.05256533]
[1727043104328,3.2078,2528.9,2528.6,0.3954]
[1727043104528,3.2078,2528.9,2528.8,0.39538]
[1727043104739,1.1136,2529.6,2529.3,0.3953]
[1727043104940,1.1136,2529.6,2529.2,0.39531]
[1727043105132,1.1136,2529.6,2529.1,0.39532]
[1727043105327,3.2078,2529.8,2529.4,0.39529]
[1727043105530,3.2078,2529.8,2529.2,3.2078]
[1727043106234,1.1289,2530.3,2529.4,0.39529]
[1727043106235,3.2078,2530.1,2529.4,0.39529]
[1727043106428,3.2078,2530.1,2529.2,3.2078]
[1727043106624,3.2078,2529.8,2529.2,3.60312]
[1727043106829,3.2078,2530.1,2529.3,0.39529]
[1727043107342,3.2078,2530.1,2529.2,3.60312]
[1727043107837,3.2078,2529.8,2529.2,3.60312]
[1727043108035,3.2078,2529.8,2529.3,0.3953]
[1727043108236,3.2078,2529.8,2529.2,0.39531]
[1727043108646,3.2078,2529.8,2529.4,3.2078]
[1727043108940,3.2078,2529.8,2529.7,0.39524]
[1727043109137,3.2078,2530.2,2529.6,0.39525]
[1727043109436,3.2078,2530.2,2529.0,1.1668]
[1727043109437,3.2078,2529.9,2529.2,0.39531]
[1727043109640,3.2078,2529.9,2529.1,0.39532]
[1727043109943,3.2078,2529.9,2529.0,4.76994]
[1727043110239,2.99,2530.2,2529.3,3.2078]
[1727043110240,3.2078,2530.2,2529.3,3.2078]
[1727043110435,3.2078,2530.2,2529.6,3.2078]
[1727043110734,3.2078,2530.2,2529.9,0.39519]
[1727043111044,3.2078,2530.2,2529.7,2.3438]
[1727043111744,3.2078,2530.2,2529.9,0.3952]
[1727043112328,3.2078,2530.2,2529.7,2.3438]
[1727043112329,3.2078,2530.2,2529.7,3.4821]
[1727043112530,3.2078,2530.2,2529.5,3.2078]
[1727043112531,3.60297,2530.2,2529.5,3.2078]
[1727043112832,3.2078,2530.2,2529.6,3.2078]
[1727043113242,3.2078,2530.2,2529.6,0.39525]
[1727043113430,3.2078,2530.2,2529.6,3.60305]
[1727043113635,3.2078,2530.2,2529.6,0.39524]
[1727043113841,3.2078,2530.2,2529.3,3.2078]
[1727043114138,3.2078,2530.2,2529.7,3.2078]
[1727043114331,3.2078,2530.2,2529.9,0.3952]
[1727043114737,3.2078,2530.2,2529.8,0.39521]
[1727043114931,3.2078,2530.2,2529.6,0.39526]
[1727043115343,3.2078,2530.2,2529.5,3.60306]
[1727043115532,3.2078,2530.2,2529.2,3.2078]
[1727043115832,3.2078,2530.2,2529.5,3.60306]
[1727043116430,3.2078,2530.2,2529.5,3.2078]
[1727043116939,1.50679,2530.1,2529.5,3.2078]
[1727043117241,3.2078,2529.9,2529.0,9.1822]
[1727043117538,3.2078,2529.9,2529.3,0.3953]
[1727043118044,3.2078,2529.9,2529.4,0.39528]
[1727043118344,3.2078,2529.9,2529.2,3.2078]
[1727043118345,1.1116,2530.1,2529.6,0.39524]
[1727043118546,1.1116,2530.1,2529.7,0.39524]
[1727043118843,1.1116,2530.1,2529.7,0.39523]
[1727043119042,1.1116,2530.1,2529.2,0.9883]
[1727043119339,3.2078,2530.2,2529.2,0.9883]
[1727043119340,3.2078,2530.2,2530.1,0.39518]
[1727043119743,3.2078,2530.2,2530.0,0.39518]
[1727043120346,3.2078,2530.2,2529.9,0.3952]
[1727043120739,3.2078,2530.2,2530.0,0.39519]
[1727043121042,3.2078,2530.2,2530.1,0.39518]
[1727043121239,1.1116,2530.9,2529.8,1.202]
[1727043121240,4.3194,2530.9,2530.0,6.1978]
[1727043121445,4.3194,2530.9,2530.4,0.39512]
[1727043121947,3.2078,2530.9,2530.5,0.39511]
[1727043122141,3.2078,2530.9,2530.6,0.3951]
[1727043122337,3.2078,2530.9,2530.3,3.2078]
[1727043122338,3.2078,2530.9,2530.5,0.3951]
[1727043122650,3.2078,2530.9,2530.0,11.2018]
[1727043122847,3.2078,2530.9,2530.1,0.39517]
[1727043123044,3.2078,2530.9,2530.2,0.39516]
[1727043123441,3.2078,2530.9,2530.1,0.39516]
[1727043123636,3.2078,2530.9,2530.0,11.2018]
[1727043123855,3.2078,2530.9,2530.2,0.39516]
[1727043124245,3.2078,2530.9,2530.3,0.39514]
[1727043124546,3.2078,2530.9,2530.2,0.39515]
[1727043124738,3.2078,2530.9,2530.7,0.39508]
[1727043124944,3.2078,2530.9,2530.6,0.39509]
[1727043125246,3.2078,2530.9,2530.3,3.2078]
[1727043125447,3.2078,2530.9,2530.7,0.39508]
[1727043126145,3.2078,2530.9,2530.3,3.2078]
[1727043126345,3.2078,2530.9,2530.0,12.18976]
[1727043126648,3.2078,2530.9,2530.4,0.39513]
[1727043126852,3.2078,2530.9,2530.2,0.98791]
[1727043127050,3.2078,2530.9,2530.1,5.1916094]
[1727043127257,3.2078,2530.9,2530.4,3.2078]
[1727043127446,3.2078,2530.9,2530.7,0.39508]
[1727043127749,3.2078,2530.9,2530.6,0.39509]
[1727043127951,3.2078,2530.9,2530.1,7.742]
[1727043128152,3.2078,2530.9,2530.0,3.2078]
[1727043128757,3.2078,2530.9,2530.3,0.39515]
[1727043129347,3.2078,2530.9,2529.9,3.69098826]
[1727043129553,3.2078,2530.9,2530.0,4.19579]
[1727043129856,3.2078,2530.9,2530.3,3.2078]
[1727043130052,3.2078,2530.9,2530.7,0.39508]
[1727043130249,3.2078,2531.2,2530.6,3.2078]
[1727043130449,1.2291,2531.5,2530.9,0.39504]
[1727043131360,3.2078,2531.3,2530.6,3.2078]
[1727043131548,3.2078,2531.3,2530.7,0.39508]
[1727043131756,3.2078,2531.3,2530.8,0.39506]
[1727043131943,2.66,2531.8,2531.0,3.2078]
[1727043132152,3.6027,2531.9,2530.7,5.0761704]
[1727043132450,3.6027,2531.9,2530.6,6.85552]
[1727043132451,3.2078,2531.6,2531.0,0.39503]
[1727043132846,3.2078,2531.9,2530.9,3.2078]
[1727043133050,3.2078,2531.9,2531.2,0.395]
[1727043133558,3.2078,2531.9,2531.3,0.39499]
[1727043133853,3.2078,2531.9,2530.9,3.2078]
[1727043134055,5.8678,2531.5,2530.5,4.3196]
[1727043134254,5.8678,2531.5,2530.9,0.39505]
[1727043134759,5.8678,2531.5,2531.0,0.39503]
[1727043134959,3.2078,2531.5,2530.8,3.2078]
[1727043135150,3.2078,2531.5,2530.5,4.3196]
[1727043135460,3.2078,2531.5,2531.0,0.39504]
[1727043135757,3.2078,2531.5,2531.1,0.39501]
[1727043136262,3.2078,2531.5,2530.5,4.3196]
[1727043136457,3.2078,2531.5,2530.9,0.39504]
[1727043137652,3.2078,2531.5,2531.0,0.39504]
[1727043138052,3.2078,2531.5,2530.8,3.2078]
[1727043138453,3.2078,2531.5,2531.2,0.395]
[1727043138758,3.2078,2531.5,2530.8,3.2078]
[1727043139064,5.8678,2531.5,2530.8,3.2078]
[1727043139262,3.2078,2531.1,2530.3,1.03098826]
[1727043139556,3.2078,2531.1,2530.8,0.39507]
[1727043140258,4.4375,2531.4,2530.4,0.98783]
[1727043140451,4.4375,2531.4,2530.8,0.39506]
[1727043140653,4.4375,2531.4,2530.4,5.20441424]
[1727043140853,3.2078,2531.4,2530.6,3.2078]
[1727043141053,3.2078,2531.8,2531.2,0.395]
[1727043141265,1.1328,2531.9,2531.4,0.39496]
[1727043141471,4.3406,2531.9,2531.2,0.395]
[1727043141758,3.2078,2531.7,2531.2,0.395]
[1727043142164,3.2078,2531.7,2531.0,3.5685]
[1727043142368,3.2078,2531.7,2531.2,0.395]
[1727043142572,3.2078,2531.7,2531.3,0.39498]
[1727043142763,3.2078,2532.0,2531.3,0.39498]
[1727043142965,3.2078,2532.0,2531.4,0.39496]
[1727043143162,3.2078,2532.0,2531.5,0.39496]
[1727043143467,3.2078,2532.0,2531.5,0.39495]
[1727043143765,3.2078,2531.7,2530.9,3.2078]
[1727043143965,2.66,2532.1,2530.9,4.4262]
[1727043143966,3.2078,2532.0,2530.9,4.4262]
[1727043144161,1.1486,2531.9,2530.9,4.4262]
[1727043144466,1.1486,2531.9,2531.2,0.395]
[1727043144767,1.1486,2531.9,2531.4,0.39497]
[1727043144968,1.1486,2531.9,2531.4,0.39496]
[1727043145267,1.1486,2531.9,2531.2,3.2078]
[1727043145472,1.1486,2531.9,2531.2,6.85529]
[1727043145657,3.2078,2532.0,2531.3,4.19528]
[1727043145857,3.2078,2532.0,2531.8,0.39491]
[1727043146063,3.2078,2532.0,2531.4,1.1128]
[1727043146064,3.2078,2532.0,2531.7,0.39492]
[1727043146255,3.2078,2532.0,2531.3,3.2078]
[1727043146861,3.2078,2531.7,2531.0,1.1257]
[1727043147073,5.8678,2531.7,2530.9,4.4262]
[1727043147286,5.8678,2531.7,2530.6,1.1257]
[1727043147287,3.60278,2531.4,2530.6,1.1257]
[1727043147564,3.2078,2531.1,2530.4,1.1631]
[1727043147759,3.2078,2531.1,2530.1,1.1257]
[1727043147760,3.2078,2530.8,2530.1,1.1257]
[1727043147960,3.2078,2530.8,2530.0,3.60299]
[1727043148168,3.2078,2530.8,2530.0,3.2078]
[1727043148360,3.2078,2530.8,2530.2,0.39515]
[1727043148562,3.2078,2530.8,2530.3,0.39514]
[1727043148759,3.2078,2530.8,2530.4,3.2078]
[1727043148964,3.2078,2530.9,2530.4,0.39513]
[1727043149160,3.2078,2530.9,2530.2,0.39515]
[1727043149465,3.2078,2530.6,2530.1,3.2078]
[1727043149962,3.2078,2530.6,2530.2,0.39516]
[1727043150271,3.2078,2530.9,2530.2,0.39515]
[1727043150465,1.1342,2531.0,2530.2,0.39515]
[1727043150466,3.2078,2530.6,2530.2,0.39515]
[1727043150659,3.2078,2530.6,2530.3,0.39515]
[1727043150859,3.2078,2530.6,2530.2,0.39515]
[1727043151066,3.2078,2530.9,2530.3,0.39514]
[1727043151369,1.1342,2531.0,2530.1,3.2078]
[1727043151370,3.2078,2530.6,2530.2,0.39515]
[1727043151573,3.2078,2530.9,2530.1,3.60297]
[1727043151772,3.2078,2530.6,2530.2,0.39516]
[1727043152069,3.2078,2530.6,2530.1,3.2078]
[1727043152978,3.2078,2530.6,2529.8,5.40188826]
[1727043153175,3.2078,2530.6,2530.0,0.39518]
[1727043153362,3.2078,2530.6,2529.8,5.40188826]
[1727043153878,3.2078,2530.6,2530.5,0.39511]
[1727043154378,1.1342,2531.0,2530.7,0.39507]
[1727043154573,3.2078,2531.2,2530.5,0.3951]
[1727043154872,3.2078,2531.2,2530.6,0.39509]
[1727043155076,3.2078,2531.2,2530.4,1.1637]
[1727043155276,3.2078,2531.2,2530.4,2.19468826]
[1727043155474,3.2078,2531.2,2530.6,0.39509]
[1727043155866,3.2078,2531.2,2530.7,0.39507]
[1727043156067,3.2078,2531.5,2531.1,0.39502]
[1727043156268,3.2078,2531.5,2531.0,0.39503]
[1727043156469,3.2078,2531.5,2530.7,1.03098826]
[1727043157079,1.131,2531.6,2530.8,1.03098826]
[1727043157269,3.2078,2531.1,2530.6,9.95948826]
[1727043157479,3.2078,2531.5,2531.0,0.39503]
[1727043157778,1.57711251,2532.5,2530.7,1.03098826]
[1727043157779,4.3566,2532.2,2531.4,0.39497]
[1727043158077,4.3566,2532.2,2530.9,4.23878826]
[1727043158078,5.4975,2532.2,2531.2,3.2078]
[1727043158279,3.2078,2531.9,2531.3,0.39498]
[1727043158578,5.4975,2532.2,2531.5,0.39495]
[1727043158882,5.4975,2532.2,2531.4,0.39497]
[1727043159178,5.4975,2532.2,2531.3,1.2028]
[1727043159179,5.4975,2532.2,2531.5,0.39496]
[1727043159376,4.3487,2532.2,2531.4,3.2078]
[1727043159684,3.2078,2531.9,2531.4,1.03098826]
[1727043160174,4.3487,2532.2,2531.5,0.39496]
[1727043160474,4.3487,2532.2,2531.4,1.03098826]
[1727043160872,4.3487,2532.2,2531.3,5.44158826]
[1727043161473,4.3487,2532.2,2531.7,0.39492]
[1727043161873,4.3487,2532.2,2531.5,0.39495]
[1727043162184,4.3487,2532.2,2531.4,0.39497]
[1727043162185,3.2078,2531.9,2531.4,0.39497]
[1727043162477,4.3487,2532.2,2531.4,0.39497]
[1727043162676,3.2078,2531.9,2531.4,0.39497]
[1727043162877,1.2207,2532.1,2531.7,0.39492]
[1727043163074,4.3487,2532.2,2531.7,0.39492]
[1727043163484,4.3487,2532.2,2531.9,0.39489]
[1727043163780,4.3487,2532.2,2531.7,0.39492]
[1727043164571,3.2078,2532.2,2531.6,1.1475]
[1727043164771,3.2078,2532.2,2531.7,0.39492]
[1727043164969,3.2078,2532.2,2531.6,2.17848826]
[1727043164970,3.2078,2532.2,2531.8,0.3949]
[1727043165784,3.2078,2532.2,2531.7,0.39492]
[1727043165986,3.2078,2532.2,2531.8,0.39491]
[1727043166181,3.2078,2532.2,2531.9,0.3949]
[1727043166374,3.2078,2532.5,2531.8,3.2078]
[1727043166574,3.2078,2532.5,2532.2,0.39484]
[1727043166877,3.2078,2532.5,2532.0,0.39487]
[1727043167073,1.1367,2532.6,2532.1,0.39486]
[1727043167580,1.1367,2532.6,2532.0,0.39487]
[1727043167784,3.2078,2532.5,2532.0,0.39487]
[1727043168780,3.2078,2532.5,2532.1,0.39486]
[1727043168978,3.2078,2532.5,2531.9,1.1826]
[1727043169291,3.2078,2532.8,2532.2,0.39484]
[1727043169495,3.2078,2532.8,2531.9,1.1826]
[1727043170087,3.2078,2532.8,2532.2,0.39484]
[1727043170282,3.2078,2532.8,2532.1,0.39486]
[1727043170885,3.2078,2532.8,2531.9,2.21358826]
[1727043171185,3.2078,2532.8,2532.1,0.39486]
[1727043171373,3.2078,2532.8,2531.9,1.1826]
[1727043171580,3.2078,2532.8,2532.1,0.39485]
[1727043171879,3.2078,2532.8,2532.3,0.39482]
[1727043172075,3.2078,2532.8,2531.9,2.21358826]
[1727043172076,3.2078,2533.2,2532.2,5.8578]
[1727043172278,1.1845,2533.4,2532.4,0.98705]
[1727043172582,1.1845,2533.4,2532.6,3.2078]
[1727043172789,1.1845,2533.4,2532.8,0.39475]
[1727043172988,1.1845,2533.4,2532.7,0.39476]
[1727043173283,3.2078,2533.2,2532.8,0.39476]
[1727043173480,1.1845,2533.4,2532.4,2.17978826]
[1727043173681,3.2078,2533.2,2532.7,0.39477]
[1727043173881,1.1845,2533.4,2532.8,0.39476]
[1727043174077,3.2078,2533.2,2532.7,0.39476]
[1727043174284,3.2078,2533.2,2532.4,1.1488]
[1727043174586,3.2078,2533.2,2532.6,0.39477]
[1727043175483,3.2078,2533.2,2532.7,0.39476]
[1727043175877,3.2078,2533.2,2532.4,1.1488]
[1727043176088,3.2078,2533.2,2532.7,0.39476]
[1727043176484,3.2078,2533.2,2532.4,1.1488]
[1727043176792,0.39469,2533.2,2532.5,0.3948]
[1727043176988,3.2078,2533.3,2532.4,1.1488]
[1727043177183,3.2078,2533.3,2532.7,0.39477]
[1727043178683,3.2078,2533.3,2532.4,1.1488]
[1727043179186,3.2078,2533.3,2532.8,0.39475]
[1727043179581,3.2078,2533.3,2532.7,3.2078]
[1727043179582,3.2078,2533.3,2532.9,0.39474]
[1727043180480,3.2078,2533.3,2532.7,3.2078]
[1727043180682,1.1845,2533.4,2532.7,3.2078]
[1727043180883,3.2078,2533.6,2533.4,0.39466]
[1727043181081,3.2078,2533.6,2533.0,3.2078]
[1727043181082,3.2078,2533.6,2533.0,4.1946]
[1727043181283,3.2078,2534.1,2533.5,3.2078]
[1727043181593,4.4077,2534.1,2533.3,0.9867]
[1727043181785,4.4077,2534.1,2533.9,0.39458]
[1727043181982,1.1552,2534.6,2533.5,3.2078]
[1727043182295,3.2078,2534.7,2534.1,0.39454]
[1727043182480,1.1999,2534.8,2533.8,3.2078]
[1727043182688,1.1999,2534.8,2533.9,2.278]
[1727043182887,3.2078,2534.7,2534.1,0.39455]
[1727043183093,3.2078,2534.7,2534.0,0.39457]
[1727043183394,3.2078,2534.7,2534.0,3.60236]
[1727043183578,3.2078,2534.7,2534.1,0.39455]
[1727043183783,3.2078,2534.7,2534.0,0.39457]
[1727043183987,1.1999,2534.8,2534.0,3.2078]
[1727043184290,1.1552,2535.2,2534.3,3.2078]
[1727043184485,1.1552,2535.2,2534.5,0.39448]
[1727043184689,1.1552,2535.2,2534.4,1.1378]
[1727043184888,3.2078,2535.1,2534.4,1.1378]
[1727043185079,1.1552,2535.2,2534.5,0.39448]
[1727043185277,1.1552,2535.2,2534.4,4.3456]
[1727043185680,1.1379,2535.3,2534.6,0.39447]
[1727043185894,1.1379,2535.3,2534.7,0.39446]
[1727043186091,3.2078,2535.4,2534.4,6.9956]
[1727043186391,3.2078,2535.4,2534.7,3.2078]
[1727043186591,3.2078,2535.4,2534.8,1.62064]
[1727043187096,3.2078,2535.4,2534.8,1.2262]
[1727043187486,3.2078,2535.4,2534.8,1.62064]
[1727043187785,3.2078,2535.4,2534.8,1.2262]
[1727043187992,3.2078,2535.4,2534.8,4.82844]
[1727043188189,3.2078,2535.4,2534.8,1.2262]
[1727043188589,3.2078,2535.4,2534.8,4.82844]
[1727043188890,1.97012,2537.6,2534.8,4.82844]
[1727043188891,3.60199,2536.5,2535.3,0.39436]
[1727043189090,2.65,2536.9,2535.4,8.72635]
[1727043189091,3.2078,2536.2,2535.4,8.72635]
[1727043189391,2.3646,2536.4,2535.6,0.39431]
[1727043189596,2.3646,2536.4,2535.6,3.60212]
[1727043189895,3.2078,2536.4,2535.9,3.2078]
[1727043190095,3.2078,2536.4,2535.7,2.65]
[1727043190096,3.2078,2536.4,2535.7,5.2366322]
[1727043190295,3.2078,2536.4,2535.7,8.7263]
[1727043190597,3.2078,2536.4,2535.7,11.5398]
[1727043190791,3.2078,2536.4,2535.8,0.39428]
[1727043191097,3.2078,2536.4,2535.9,0.39427]
[1727043191410,4.3626,2536.8,2535.9,0.39426]
[1727043191585,3.2078,2536.5,2535.9,0.39426]
[1727043191788,4.3626,2536.8,2535.9,0.39426]
[1727043192102,4.3626,2536.8,2535.7,14.1898]
[1727043192302,3.2078,2536.8,2536.0,11.0063994]
[1727043192600,4.3868,2537.1,2536.2,3.2078]
[1727043192794,4.3868,2537.1,2536.1,1.1746]
[1727043192795,4.3868,2537.1,2536.5,0.39417]
[1727043193000,4.3868,2537.1,2536.6,0.39416]
[1727043193191,4.3868,2537.1,2536.5,3.2078]
[1727043193497,1.2067,2537.4,2536.6,7.67984563]
[1727043193498,3.2078,2537.4,2536.6,7.67984563]
[1727043193798,3.2078,2537.4,2536.8,0.39413]
[1727043194189,3.2078,2537.4,2536.9,0.39411]
[1727043194587,3.2078,2537.4,2536.8,0.39413]
[1727043194796,3.2078,2536.9,2536.6,0.39415]
[1727043194995,3.8567,2537.7,2536.6,0.39415]
[1727043194996,3.2078,2537.3,2536.6,0.39415]
[1727043195193,3.2078,2537.3,2536.5,8.327]
[1727043195194,3.2078,2537.0,2536.3,4.4274]
[1727043195502,1.2067,2537.7,2536.1,2.3272]
[1727043195503,3.2078,2536.7,2536.4,0.07244285]
[1727043196201,3.2078,2536.7,2536.4,0.46663285]
[1727043196398,3.2078,2536.7,2536.5,0.39418]
[1727043196593,3.2078,2536.7,2536.4,0.07244285]
[1727043197503,1.2067,2536.9,2536.4,0.07244285]
[1727043197698,3.2078,2536.7,2536.4,0.07244285]
[1727043198800,0.39422,2536.3,2535.1,8.326]
[1727043199002,3.2078,2535.9,2535.2,2.3579]
[1727043199298,3.2078,2536.1,2535.9,0.39427]
[1727043199491,3.2078,2536.1,2535.9,0.39426]
[1727043199691,3.2078,2536.1,2536.0,0.39426]
[1727043199901,3.2078,2536.1,2535.9,0.39427]
[1727043200102,3.2078,2536.1,2535.6,0.39431]
[1727043200402,2.65,2536.6,2535.2,2.3579]
[1727043200403,3.2078,2535.8,2535.2,2.3579]
[1727043200602,3.2078,2535.8,2535.5,0.39432]
[1727043200802,3.2078,2535.8,2535.6,3.944]
[1727043201007,3.2078,2536.3,2535.7,0.3943]
[1727043201203,3.2078,2536.0,2535.6,0.39431]
[1727043201504,3.2078,2535.9,2535.5,0.39433]
[1727043202605,3.2078,2535.9,2535.2,5.5657]
[1727043202805,3.2078,2535.9,2535.6,0.39431]
[1727043203000,3.2078,2535.9,2535.3,5.07727185]
[1727043203197,3.2078,2535.9,2535.5,0.39433]
[1727043203802,3.2078,2535.9,2535.3,5.07727185]
[1727043204004,3.2078,2535.9,2535.3,8.326]
[1727043204310,3.2078,2535.6,2535.3,8.326]
[1727043205002,1.1687,2535.8,2535.3,8.326]
[1727043205211,3.2078,2536.0,2535.6,0.39432]
[1727043205417,3.2078,2536.0,2535.7,0.3943]
[1727043205602,3.2078,2536.0,2535.6,0.39432]
[1727043205801,3.2078,2536.0,2535.5,1.1554]
[1727043206003,3.2078,2536.4,2535.5,1.1554]
[1727043206201,3.2078,2536.1,2535.5,1.1554]
[1727043206415,2.3445,2536.6,2535.5,1.1554]
[1727043206416,3.2078,2536.4,2535.7,2.65]
[1727043206608,3.2078,2536.4,2535.8,0.39429]
[1727043207405,3.2078,2536.1,2535.7,2.65]
[1727043207606,3.2078,2536.1,2536.0,0.39426]
[1727043207808,3.2078,2536.1,2535.9,0.39426]
[1727043208113,3.2078,2536.4,2535.7,11.64571999]
[1727043208413,3.2078,2536.7,2536.1,3.2078]
[1727043208611,3.2078,2536.7,2536.5,0.39417]
[1727043208811,3.2078,2536.7,2536.4,0.39419]
[1727043209109,3.2078,2536.7,2536.6,0.39416]
[1727043209308,3.2078,2537.1,2536.5,0.39417]
[1727043210007,3.2078,2536.8,2536.5,0.39417]
[1727043210512,3.2078,2536.8,2536.4,0.39418]
[1727043210718,3.2078,2536.8,2536.5,0.39418]
[1727043211416,4.127,2538.8,2536.7,2.65]
[1727043211618,3.2078,2537.8,2536.8,2.72244611]
[1727043211915,3.2078,2537.5,2536.8,5.11865562]
[1727043212116,3.2078,2537.5,2536.7,0.39415]
[1727043212413,3.2078,2537.5,2536.2,13.1065]
[1727043212414,3.2078,2537.0,2536.6,0.39416]
[1727043212720,1.255,2537.7,2536.5,0.39417]
[1727043212721,3.2078,2537.5,2536.5,0.39417]
[1727043212919,3.2078,2537.2,2536.4,0.39419]
[1727043213221,1.1827,2537.1,2536.5,0.39418]
[1727043213515,1.1827,2537.1,2536.3,5.17055436]
[1727043213721,1.1827,2537.1,2536.6,0.39416]
[1727043214114,1.1827,2537.1,2536.5,0.39417]
[1727043214310,1.1827,2537.1,2536.2,10.4565]
[1727043214311,3.2078,2536.6,2536.2,10.4565]
[1727043214714,3.2078,2536.6,2536.2,10.85072]
[1727043214915,3.2078,2536.9,2536.3,3.9424]
[1727043215227,3.2078,2536.9,2536.6,0.39415]
[1727043216719,3.2078,2536.9,2536.5,0.39417]
[1727043217115,3.2078,2536.9,2536.6,0.39416]
[1727043217317,3.2078,2536.9,2536.7,0.39414]
[1727043217623,3.2078,2537.4,2536.6,2.65]
[1727043217813,3.2078,2537.4,2537.0,0.3941]
[1727043218120,3.2078,2537.4,2536.9,0.39411]
[1727043218318,3.2078,2537.4,2536.7,5.08004023]
[1727043219015,3.2078,2537.4,2537.2,0.39406]
[1727043220228,3.2078,2538.1,2537.7,0.39398]
[1727043220521,3.63448,2539.1,2537.7,3.2078]
[1727043220522,3.2078,2538.3,2537.7,3.2078]
[1727043221314,3.2078,2538.3,2537.4,8.17403]
[1727043221521,3.2078,2538.0,2537.4,7.78]
[1727043221721,3.2078,2538.0,2537.5,0.39401]
[1727043222419,3.2078,2538.0,2537.6,0.39401]
[1727043222615,3.2078,2538.3,2537.5,3.60182]
[1727043222817,3.2078,2538.3,2537.6,0.394]
[1727043223021,3.2078,2538.3,2537.5,3.2078]
[1727043223420,5.5724,2538.6,2537.9,0.39396]
[1727043223620,3.2078,2538.5,2537.9,0.39396]
[1727043223814,2.3646,2538.6,2537.7,7.0997]
[1727043224020,2.3646,2538.6,2538.0,5.13349097]
[1727043224221,3.2078,2538.5,2537.8,5.13349097]
[1727043224420,3.2078,2538.5,2537.7,1.2419]
[1727043224616,3.2078,2538.4,2538.0,0.39394]